[Event "Titled Tuesday Blitz October 11 Late 2022"]
[White "Zhigalko, Sergei"]
[Black "Koziorowicz, Michal"]
[WhiteFideId "13502956"]
[BlackFideId "21809194"]
[WhiteElo "2662"]
[BlackElo "2220"]
[Result "0-1"]
[Round "07"]
[TimeControl "180+1"]
[Date "2022.10.11"]
[WhiteClock "0:00:05"]
[BlackClock "0:00:07"]

1. e4 {[%clk 0:03:00]}  c5 {[%clk 0:02:59]} 2. Nf3 {[%clk 0:03:00]}  d6 {[%clk 0:03:00]} 3. d4 {[%clk 0:03:00]}  cxd4 {[%clk 0:03:01]} 4. Qxd4 {[%clk 0:03:01]}  Nc6 {[%clk 0:03:00]} 5. Bb5 {[%clk 0:03:01]}  Bd7 {[%clk 0:03:00]} 6. Bxc6 {[%clk 0:03:01]}  Bxc6 {[%clk 0:03:01]} 7. Nc3 {[%clk 0:03:02]}  Nf6 {[%clk 0:03:01]} 8. Bg5 {[%clk 0:03:02]}  e6 {[%clk 0:03:00]} 9. O-O-O {[%clk 0:03:02]}  Be7 {[%clk 0:03:00]} 10. Rhe1 {[%clk 0:03:02]}  Qa5 {[%clk 0:02:59]} 11. Kb1 {[%clk 0:03:02]}  h6 {[%clk 0:02:53]} 12. Bh4 {[%clk 0:02:59]}  O-O {[%clk 0:02:39]} 13. Qd2 {[%clk 0:02:59]}  Qa6 {[%clk 0:02:30]} 14. Nd4 {[%clk 0:02:59]}  b5 {[%clk 0:02:28]} 15. Qd3 {[%clk 0:02:35]}  Rab8 {[%clk 0:02:27]} 16. f4 {[%clk 0:02:25]}  Rfe8 {[%clk 0:01:27]} 17. g4 {[%clk 0:02:12]}  Qb7 {[%clk 0:01:22]} 18. g5 {[%clk 0:01:59]}  Nd7 {[%clk 0:01:21]} 19. Qg3 {[%clk 0:01:33]}  h5 {[%clk 0:01:18]} 20. g6 {[%clk 0:01:29]}  fxg6 {[%clk 0:00:52]} 21. Bxe7 {[%clk 0:01:16]}  Rxe7 {[%clk 0:00:53]} 22. f5 {[%clk 0:01:04]}  b4 {[%clk 0:00:48]} 23. Nxc6 {[%clk 0:00:53]}  Qxc6 {[%clk 0:00:44]} 24. Rxd6 {[%clk 0:00:49]}  Qc7 {[%clk 0:00:40]} 25. Rxe6 {[%clk 0:00:29]}  Qxg3 {[%clk 0:00:40]} 26. hxg3 {[%clk 0:00:30]}  Rxe6 {[%clk 0:00:41]} 27. fxe6 {[%clk 0:00:31]}  Nc5 {[%clk 0:00:41]} 28. Nd5 {[%clk 0:00:24]}  Nxe6 {[%clk 0:00:42]} 29. Kc1 {[%clk 0:00:10]}  g5 {[%clk 0:00:42]} 30. Kd2 {[%clk 0:00:06]}  h4 {[%clk 0:00:29]} 31. gxh4 {[%clk 0:00:05]}  gxh4 {[%clk 0:00:30]} 32. Ke3 {[%clk 0:00:04]}  g5 {[%clk 0:00:28]} 33. Rf1 {[%clk 0:00:04]}  Kg7 {[%clk 0:00:26]} 34. Rf5 {[%clk 0:00:02]}  Rh8 {[%clk 0:00:24]} 35. Re5 {[%clk 0:00:02]}  Kf7 {[%clk 0:00:23]} 36. Rf5+ {[%clk 0:00:02]}  Kg7 {[%clk 0:00:21]} 37. Kf2 {[%clk 0:00:02]}  h3 {[%clk 0:00:21]} 38. Kg1 {[%clk 0:00:02]}  h2+ {[%clk 0:00:21]} 39. Kh1 {[%clk 0:00:02]}  g4 {[%clk 0:00:21]} 40. Re5 {[%clk 0:00:02]}  g3 {[%clk 0:00:20]} 41. Ne3 {[%clk 0:00:03]}  Kf6 {[%clk 0:00:17]} 42. Rf5+ {[%clk 0:00:04]}  Ke7 {[%clk 0:00:16]} 43. Rf3 {[%clk 0:00:04]}  Rg8 {[%clk 0:00:16]} 44. Nf5+ {[%clk 0:00:05]}  Kf6 {[%clk 0:00:13]} 45. Nxg3+ {[%clk 0:00:05]}  Ke5 {[%clk 0:00:14]} 46. Kxh2 {[%clk 0:00:05]}  Nd4 {[%clk 0:00:14]} 47. Rd3 {[%clk 0:00:05]}  Nxc2 {[%clk 0:00:12]} 48. Rd5+ {[%clk 0:00:03]}  Kf4 {[%clk 0:00:12]} 49. Rf5+ {[%clk 0:00:03]}  Ke3 {[%clk 0:00:12]} 50. Rf7 {[%clk 0:00:03]}  a5 {[%clk 0:00:09]} 51. e5 {[%clk 0:00:03]}  Nd4 {[%clk 0:00:10]} 52. Rf6 {[%clk 0:00:02]}  Rc8 {[%clk 0:00:09]} 53. e6 {[%clk 0:00:02]}  Re8 {[%clk 0:00:08]} 54. Nf1+ {[%clk 0:00:02]}  Kd3 {[%clk 0:00:07]} 55. Ng3 {[%clk 0:00:02]}  Rxe6 {[%clk 0:00:07]} 56. Rf2 {[%clk 0:00:02]}  Ne2 {[%clk 0:00:06]} 57. Kg2 {[%clk 0:00:03]}  Nxg3 {[%clk 0:00:06]} 58. Kxg3 {[%clk 0:00:04]}  Re3+ {[%clk 0:00:07]} 59. Kg4 {[%clk 0:00:03]}  Re2 {[%clk 0:00:07]} 60. Rf5 {[%clk 0:00:04]}  a4 {[%clk 0:00:07]} 61. b3 {[%clk 0:00:04]}  a3 {[%clk 0:00:07]} 62. Rf3+ {[%clk 0:00:04]}  Kc2 {[%clk 0:00:06]} 63. Rf4 {[%clk 0:00:04]}  Kb2 {[%clk 0:00:06]} 64. Rxb4 {[%clk 0:00:05]}  Kxa2 {[%clk 0:00:07]} 65. Kf3 {[%clk 0:00:05]}  Rb2 {[%clk 0:00:06]} 66. Ra4 {[%clk 0:00:01]}  Kxb3 {[%clk 0:00:07]} 67. Ra8 {[%clk 0:00:02]}  a2 {[%clk 0:00:07]} 68. Ke3 {[%clk 0:00:02]}  Rb1 {[%clk 0:00:06]} 69. Kd3 {[%clk 0:00:03]}  a1=Q {[%clk 0:00:05]} 70. Rb8+ {[%clk 0:00:04]}  Ka4 {[%clk 0:00:06]} 71. Ra8+ {[%clk 0:00:04]}  Kb5 {[%clk 0:00:06]} 72. Rxa1 {[%clk 0:00:05]}  Rxa1 {[%clk 0:00:07]} 0-1


[Site "https://www.chess.com"]

[Event "Titled Tuesday Blitz October 11 Late 2022"]
[White "Zhukov, Maksim"]
[Black "Aghasiyev, Kamal"]
[WhiteFideId "34181790"]
[BlackFideId "13402854"]
[WhiteElo "1929"]
[BlackElo "2341"]
[Result "0-1"]
[Round "07"]
[TimeControl "180+1"]
[Date "2022.10.12"]
[WhiteClock "0:00:12"]
[BlackClock "0:00:09"]

1. Nf3 {[%clk 0:02:46]}  d5 {[%clk 0:02:59]} 2. g3 {[%clk 0:02:47]}  Nf6 {[%clk 0:02:59]} 3. Bg2 {[%clk 0:02:48]}  e6 {[%clk 0:02:59]} 4. O-O {[%clk 0:02:48]}  Be7 {[%clk 0:02:59]} 5. d3 {[%clk 0:02:49]}  O-O {[%clk 0:02:57]} 6. Nbd2 {[%clk 0:02:50]}  Nc6 {[%clk 0:02:55]} 7. e4 {[%clk 0:02:51]}  dxe4 {[%clk 0:02:54]} 8. Nxe4 {[%clk 0:02:52]}  Nxe4 {[%clk 0:02:53]} 9. dxe4 {[%clk 0:02:52]}  e5 {[%clk 0:02:51]} 10. c3 {[%clk 0:02:53]}  a5 {[%clk 0:02:48]} 11. a4 {[%clk 0:02:52]}  Be6 {[%clk 0:02:43]} 12. Qc2 {[%clk 0:02:52]}  Bc5 {[%clk 0:02:29]} 13. Rd1 {[%clk 0:02:49]}  Qe7 {[%clk 0:02:28]} 14. h3 {[%clk 0:02:42]}  f6 {[%clk 0:02:25]} 15. Nh4 {[%clk 0:02:36]}  Qf7 {[%clk 0:02:22]} 16. Re1 {[%clk 0:02:30]}  Rfd8 {[%clk 0:02:09]} 17. Nf5 {[%clk 0:02:29]}  Rd7 {[%clk 0:02:06]} 18. Be3 {[%clk 0:02:28]}  Bxe3 {[%clk 0:01:53]} 19. Nxe3 {[%clk 0:02:28]}  Rad8 {[%clk 0:01:53]} 20. Rad1 {[%clk 0:02:25]}  Bb3 {[%clk 0:01:33]} 21. Rxd7 {[%clk 0:02:12]}  Rxd7 {[%clk 0:01:31]} 22. Qe2 {[%clk 0:02:08]}  Bxa4 {[%clk 0:01:30]} 23. Nd5 {[%clk 0:02:07]}  Ne7 {[%clk 0:00:36]} 24. Qc4 {[%clk 0:01:55]}  Bc6 {[%clk 0:00:33]} 25. Rd1 {[%clk 0:01:55]}  Kh8 {[%clk 0:00:20]} 26. Qc5 {[%clk 0:01:53]}  Nc8 {[%clk 0:00:17]} 27. Qxa5 {[%clk 0:01:50]}  b6 {[%clk 0:00:17]} 28. Qb4 {[%clk 0:01:47]}  f5 {[%clk 0:00:16]} 29. Qc4 {[%clk 0:01:25]}  Bxd5 {[%clk 0:00:13]} 30. exd5 {[%clk 0:01:23]}  Nd6 {[%clk 0:00:13]} 31. Qc6 {[%clk 0:01:21]}  h6 {[%clk 0:00:09]} 32. Re1 {[%clk 0:01:19]}  Re7 {[%clk 0:00:09]} 33. Ra1 {[%clk 0:01:13]}  e4 {[%clk 0:00:08]} 34. Ra8+ {[%clk 0:01:12]}  Kh7 {[%clk 0:00:09]} 35. Kh2 {[%clk 0:01:04]}  f4 {[%clk 0:00:09]} 36. Qa4 {[%clk 0:00:53]}  f3 {[%clk 0:00:08]} 37. Bf1 {[%clk 0:00:53]}  e3 {[%clk 0:00:08]} 38. Bd3+ {[%clk 0:00:50]}  g6 {[%clk 0:00:08]} 39. Qd4 {[%clk 0:00:48]}  Qg7 {[%clk 0:00:06]} 40. fxe3 {[%clk 0:00:42]}  Qxd4 {[%clk 0:00:05]} 41. exd4 {[%clk 0:00:41]}  Re3 {[%clk 0:00:05]} 42. Ba6 {[%clk 0:00:37]}  Re1 {[%clk 0:00:04]} 43. Rf8 {[%clk 0:00:36]}  Rb1 {[%clk 0:00:02]} 44. Rxf3 {[%clk 0:00:34]}  Rxb2+ {[%clk 0:00:02]} 45. Kg1 {[%clk 0:00:34]}  b5 {[%clk 0:00:03]} 46. Rf8 {[%clk 0:00:20]}  Ra2 {[%clk 0:00:03]} 47. Ra8 {[%clk 0:00:18]}  Kg7 {[%clk 0:00:02]} 48. Bb7 {[%clk 0:00:15]}  Rb2 {[%clk 0:00:03]} 49. Bc6 {[%clk 0:00:15]}  g5 {[%clk 0:00:03]} 50. Ra7 {[%clk 0:00:15]}  Kf6 {[%clk 0:00:03]} 51. Rxc7 {[%clk 0:00:15]}  Kf5 {[%clk 0:00:03]} 52. Rd7 {[%clk 0:00:14]}  Ne4 {[%clk 0:00:03]} 53. Rf7+ {[%clk 0:00:12]}  Kg6 {[%clk 0:00:03]} 54. Rf3 {[%clk 0:00:11]}  Rc2 {[%clk 0:00:02]} 55. d6 {[%clk 0:00:10]}  Nxd6 {[%clk 0:00:02]} 56. Bd5 {[%clk 0:00:09]}  Kg7 {[%clk 0:00:02]} 57. h4 {[%clk 0:00:09]}  g4 {[%clk 0:00:02]} 58. Re3 {[%clk 0:00:08]}  Nf5 {[%clk 0:00:02]} 59. Rd3 {[%clk 0:00:08]}  h5 {[%clk 0:00:02]} 60. Be4 {[%clk 0:00:08]}  Nd6 {[%clk 0:00:02]} 61. Bd5 {[%clk 0:00:08]}  Kf6 {[%clk 0:00:03]} 62. Re3 {[%clk 0:00:07]}  Nf5 {[%clk 0:00:03]} 63. Re6+ {[%clk 0:00:07]}  Kg7 {[%clk 0:00:03]} 64. Rb6 {[%clk 0:00:05]}  Nxg3 {[%clk 0:00:03]} 65. Rxb5 {[%clk 0:00:05]}  Rxc3 {[%clk 0:00:03]} 66. Bg2 {[%clk 0:00:05]}  Ne2+ {[%clk 0:00:03]} 67. Kf1 {[%clk 0:00:05]}  Nxd4 {[%clk 0:00:03]} 68. Rxh5 {[%clk 0:00:05]}  g3 {[%clk 0:00:03]} 69. Rg5+ {[%clk 0:00:05]}  Kf6 {[%clk 0:00:04]} 70. Be4 {[%clk 0:00:05]}  Re3 {[%clk 0:00:03]} 71. Bc2 {[%clk 0:00:04]}  Nxc2 {[%clk 0:00:02]} 72. Kg2 {[%clk 0:00:05]}  Ne1+ {[%clk 0:00:02]} 73. Kh3 {[%clk 0:00:05]}  g2+ {[%clk 0:00:03]} 74. Kh2 {[%clk 0:00:06]}  Nf3+ {[%clk 0:00:03]} 75. Kxg2 {[%clk 0:00:06]}  Nxg5 {[%clk 0:00:04]} 76. hxg5+ {[%clk 0:00:06]}  Kxg5 {[%clk 0:00:04]} 77. Kf2 {[%clk 0:00:07]}  Re5 {[%clk 0:00:05]} 78. Kf3 {[%clk 0:00:08]}  Rf5+ {[%clk 0:00:06]} 79. Kg3 {[%clk 0:00:09]}  Rf4 {[%clk 0:00:07]} 80. Kh2 {[%clk 0:00:09]}  Rf3 {[%clk 0:00:07]} 81. Kg2 {[%clk 0:00:10]}  Kg4 {[%clk 0:00:07]} 82. Kh2 {[%clk 0:00:11]}  Rf2+ {[%clk 0:00:08]} 83. Kg1 {[%clk 0:00:12]}  Kg3 {[%clk 0:00:08]} 84. Kh1 {[%clk 0:00:12]}  Rf1# {[%clk 0:00:09]} 0-1


[Site "https://www.chess.com"]

[Event "Titled Tuesday Blitz October 11 Late 2022"]
[White "Zomorrodian, Eilia"]
[Black "Bazeev, German"]
[WhiteFideId "12551805"]
[BlackFideId "24119350"]
[WhiteElo "2563"]
[BlackElo "2750"]
[Result "1-0"]
[Round "07"]
[TimeControl "180+1"]
[Date "2022.10.12"]
[WhiteClock "0:00:25"]
[BlackClock "0:00:54"]

1. c4 {[%clk 0:02:50]}  e5 {[%clk 0:02:59]} 2. a3 {[%clk 0:02:37]}  Nf6 {[%clk 0:02:43]} 3. e3 {[%clk 0:02:36]}  g6 {[%clk 0:02:43]} 4. b4 {[%clk 0:02:35]}  Bg7 {[%clk 0:02:43]} 5. Bb2 {[%clk 0:02:35]}  d6 {[%clk 0:02:43]} 6. Nf3 {[%clk 0:02:36]}  O-O {[%clk 0:02:43]} 7. d3 {[%clk 0:02:36]}  a5 {[%clk 0:02:44]} 8. b5 {[%clk 0:02:36]}  c5 {[%clk 0:02:44]} 9. Be2 {[%clk 0:02:35]}  b6 {[%clk 0:02:44]} 10. O-O {[%clk 0:02:35]}  Bb7 {[%clk 0:02:45]} 11. Nbd2 {[%clk 0:02:35]}  Nbd7 {[%clk 0:02:45]} 12. Qc2 {[%clk 0:02:27]}  Qe7 {[%clk 0:02:43]} 13. Rfd1 {[%clk 0:02:27]}  d5 {[%clk 0:02:43]} 14. cxd5 {[%clk 0:02:25]}  Nxd5 {[%clk 0:02:42]} 15. Nc4 {[%clk 0:02:24]}  f5 {[%clk 0:02:36]} 16. Bf1 {[%clk 0:02:22]}  f4 {[%clk 0:02:33]} 17. Qb3 {[%clk 0:02:12]}  a4 {[%clk 0:02:29]} 18. Qa2 {[%clk 0:02:12]}  Kh8 {[%clk 0:02:29]} 19. e4 {[%clk 0:02:07]}  Nc7 {[%clk 0:02:28]} 20. Rac1 {[%clk 0:01:53]}  g5 {[%clk 0:02:24]} 21. Qa1 {[%clk 0:01:49]}  Rae8 {[%clk 0:02:20]} 22. h3 {[%clk 0:01:26]}  h5 {[%clk 0:02:02]} 23. Nh2 {[%clk 0:01:26]}  Nxb5 {[%clk 0:01:57]} 24. Be2 {[%clk 0:01:21]}  Qf7 {[%clk 0:01:56]} 25. Qb1 {[%clk 0:01:15]}  Bc6 {[%clk 0:01:54]} 26. Ba1 {[%clk 0:01:09]}  Qg6 {[%clk 0:01:39]} 27. Nf3 {[%clk 0:00:33]}  Nc7 {[%clk 0:01:28]} 28. Nxb6 {[%clk 0:00:31]}  Rb8 {[%clk 0:01:09]} 29. Nxd7 {[%clk 0:00:31]}  Bxd7 {[%clk 0:01:09]} 30. Qc2 {[%clk 0:00:30]}  Ne6 {[%clk 0:01:02]} 31. Nxe5 {[%clk 0:00:30]}  Qe8 {[%clk 0:00:57]} 32. Nxd7 {[%clk 0:00:29]}  Qxd7 {[%clk 0:00:56]} 33. Bxg7+ {[%clk 0:00:27]}  Qxg7 {[%clk 0:00:57]} 34. Bxh5 {[%clk 0:00:28]}  Rb3 {[%clk 0:00:54]} 35. Bg4 {[%clk 0:00:25]}  Nd4 {[%clk 0:00:54]} 36. Qxc5 {[%clk 0:00:25]}  Rxa3 {[%clk 0:00:54]} 37. Qxa3 {[%clk 0:00:25]} 1-0


[Site "https://www.chess.com"]

[Event "Titled Tuesday Blitz October 11 Late 2022"]
[White "Balkum, Alexander"]
[Black "Simonovic, Miroslav"]
[WhiteFideId "2005069"]
[BlackFideId "919152"]
[WhiteElo "2315"]
[BlackElo "2043"]
[Result "1-0"]
[Round "08"]
[TimeControl "180+1"]
[Date "2022.10.12"]
[WhiteClock "0:00:12"]
[BlackClock "0:00:01"]

1. e4 {[%clk 0:03:00]}  c5 {[%clk 0:02:59]} 2. Nf3 {[%clk 0:03:00]}  Nc6 {[%clk 0:02:59]} 3. d4 {[%clk 0:03:01]}  cxd4 {[%clk 0:03:00]} 4. Nxd4 {[%clk 0:03:01]}  a6 {[%clk 0:03:01]} 5. Nc3 {[%clk 0:03:01]}  e5 {[%clk 0:03:01]} 6. Nxc6 {[%clk 0:02:32]}  bxc6 {[%clk 0:03:02]} 7. Be2 {[%clk 0:02:17]}  Nf6 {[%clk 0:03:01]} 8. O-O {[%clk 0:02:17]}  Bb4 {[%clk 0:03:02]} 9. Bg5 {[%clk 0:02:15]}  O-O {[%clk 0:02:57]} 10. Kh1 {[%clk 0:02:13]}  Bxc3 {[%clk 0:02:54]} 11. bxc3 {[%clk 0:02:13]}  h6 {[%clk 0:02:54]} 12. Bh4 {[%clk 0:01:38]}  g5 {[%clk 0:02:53]} 13. Bg3 {[%clk 0:01:38]}  Qe7 {[%clk 0:02:36]} 14. Bd3 {[%clk 0:01:28]}  d6 {[%clk 0:02:33]} 15. f3 {[%clk 0:01:23]}  Be6 {[%clk 0:02:32]} 16. c4 {[%clk 0:01:23]}  Rfb8 {[%clk 0:02:29]} 17. Qd2 {[%clk 0:01:20]}  Kg7 {[%clk 0:02:26]} 18. Rab1 {[%clk 0:01:14]}  Nh5 {[%clk 0:02:18]} 19. Bf2 {[%clk 0:01:07]}  Nf4 {[%clk 0:02:09]} 20. Qc3 {[%clk 0:01:07]}  f6 {[%clk 0:01:59]} 21. g3 {[%clk 0:00:57]}  Ng6 {[%clk 0:01:57]} 22. Be3 {[%clk 0:00:53]}  Qc7 {[%clk 0:01:48]} 23. Rbe1 {[%clk 0:00:33]}  Rc8 {[%clk 0:01:41]} 24. f4 {[%clk 0:00:33]}  Ne7 {[%clk 0:01:27]} 25. fxe5 {[%clk 0:00:23]}  fxe5 {[%clk 0:01:21]} 26. Qd2 {[%clk 0:00:23]}  Ng6 {[%clk 0:01:13]} 27. h4 {[%clk 0:00:22]}  gxh4 {[%clk 0:01:07]} 28. Bxh6+ {[%clk 0:00:21]}  Kh7 {[%clk 0:01:05]} 29. Rf6 {[%clk 0:00:20]}  Qe7 {[%clk 0:00:49]} 30. Ref1 {[%clk 0:00:19]}  hxg3 {[%clk 0:00:40]} 31. Qg5 {[%clk 0:00:18]}  Rg8 {[%clk 0:00:17]} 32. Qh5 {[%clk 0:00:19]}  Rg7 {[%clk 0:00:10]} 33. Bxg7+ {[%clk 0:00:17]}  Kg8 {[%clk 0:00:09]} 34. Rxg6 {[%clk 0:00:14]}  g2+ {[%clk 0:00:09]} 35. Rxg2 {[%clk 0:00:14]}  Qxg7 {[%clk 0:00:08]} 36. Rxg7+ {[%clk 0:00:13]}  Kxg7 {[%clk 0:00:09]} 37. Qg5+ {[%clk 0:00:12]}  Kh7 {[%clk 0:00:07]} 38. Rf6 {[%clk 0:00:12]}  Rg8 {[%clk 0:00:01]} 39. Rh6# {[%clk 0:00:12]} 1-0


[Site "https://www.chess.com"]

[Event "Titled Tuesday Blitz October 11 Late 2022"]
[White "Banzea, Alexandru-Bogdan"]
[Black "Tayar, Jonathan"]
[WhiteFideId "1232622"]
[BlackFideId "2606534"]
[WhiteElo "2294"]
[BlackElo "2406"]
[Result "0-1"]
[Round "08"]
[TimeControl "180+1"]
[Date "2022.10.12"]
[WhiteClock "0:00:06"]
[BlackClock "0:00:15"]

1. d4 {[%clk 0:03:00]}  Nf6 {[%clk 0:02:49]} 2. Bf4 {[%clk 0:03:00]}  d6 {[%clk 0:02:47]} 3. Nf3 {[%clk 0:03:00]}  c5 {[%clk 0:02:43]} 4. dxc5 {[%clk 0:02:59]}  Qa5+ {[%clk 0:02:42]} 5. Nc3 {[%clk 0:02:56]}  Qxc5 {[%clk 0:02:42]} 6. e4 {[%clk 0:02:56]}  Bg4 {[%clk 0:02:38]} 7. Qd2 {[%clk 0:02:56]}  Nc6 {[%clk 0:02:36]} 8. O-O-O {[%clk 0:02:55]}  g6 {[%clk 0:02:33]} 9. Kb1 {[%clk 0:02:07]}  Bg7 {[%clk 0:02:29]} 10. Bh6 {[%clk 0:01:55]}  Bxh6 {[%clk 0:02:14]} 11. Qxh6 {[%clk 0:01:56]}  Qxf2 {[%clk 0:02:10]} 12. Bc4 {[%clk 0:01:41]}  Qxg2 {[%clk 0:01:45]} 13. Rdf1 {[%clk 0:01:22]}  O-O-O {[%clk 0:01:00]} 14. Ng5 {[%clk 0:00:54]}  Ne5 {[%clk 0:00:38]} 15. Bxf7 {[%clk 0:00:20]}  Kb8 {[%clk 0:00:27]} 16. Bb3 {[%clk 0:00:17]}  Qd2 {[%clk 0:00:20]} 17. Nf7 {[%clk 0:00:17]}  Qxh6 {[%clk 0:00:19]} 18. Nxh6 {[%clk 0:00:18]}  Bd7 {[%clk 0:00:18]} 19. Nf7 {[%clk 0:00:16]}  Nxf7 {[%clk 0:00:17]} 20. Bxf7 {[%clk 0:00:17]}  Rhf8 {[%clk 0:00:17]} 21. Bb3 {[%clk 0:00:17]}  Bc6 {[%clk 0:00:17]} 22. Re1 {[%clk 0:00:15]}  Ng4 {[%clk 0:00:15]} 23. Nd5 {[%clk 0:00:11]}  Bxd5 {[%clk 0:00:15]} 24. exd5 {[%clk 0:00:12]}  Ne5 {[%clk 0:00:15]} 25. h4 {[%clk 0:00:11]}  Rf6 {[%clk 0:00:13]} 26. c3 {[%clk 0:00:10]}  Rdf8 {[%clk 0:00:13]} 27. Bc2 {[%clk 0:00:11]}  a6 {[%clk 0:00:13]} 28. h5 {[%clk 0:00:10]}  Ka7 {[%clk 0:00:13]} 29. hxg6 {[%clk 0:00:10]}  hxg6 {[%clk 0:00:14]} 30. Rh7 {[%clk 0:00:10]}  R8f7 {[%clk 0:00:14]} 31. Rxf7 {[%clk 0:00:10]}  Rxf7 {[%clk 0:00:15]} 32. Rg1 {[%clk 0:00:10]}  Rg7 {[%clk 0:00:16]} 33. Rg5 {[%clk 0:00:10]}  Kb6 {[%clk 0:00:16]} 34. b4 {[%clk 0:00:09]}  Kc7 {[%clk 0:00:16]} 35. Kb2 {[%clk 0:00:08]}  Kd7 {[%clk 0:00:14]} 36. Kb3 {[%clk 0:00:09]}  e6 {[%clk 0:00:14]} 37. c4 {[%clk 0:00:07]}  exd5 {[%clk 0:00:14]} 38. cxd5 {[%clk 0:00:08]}  Ke7 {[%clk 0:00:14]} 39. a4 {[%clk 0:00:08]}  Kf6 {[%clk 0:00:14]} 40. Rg1 {[%clk 0:00:06]}  g5 {[%clk 0:00:14]} 41. Rf1+ {[%clk 0:00:07]}  Ke7 {[%clk 0:00:14]} 42. a5 {[%clk 0:00:02]}  g4 {[%clk 0:00:14]} 43. Rg1 {[%clk 0:00:01]}  g3 {[%clk 0:00:15]} 44. Be4 {[%clk 0:00:02]}  Rg4 {[%clk 0:00:14]} 45. Bg2 {[%clk 0:00:02]}  Kf6 {[%clk 0:00:14]} 46. Rf1+ {[%clk 0:00:03]}  Kg5 {[%clk 0:00:14]} 47. Re1 {[%clk 0:00:04]}  Rxb4+ {[%clk 0:00:13]} 48. Kxb4 {[%clk 0:00:04]}  Nd3+ {[%clk 0:00:13]} 49. Kc4 {[%clk 0:00:05]}  Nxe1 {[%clk 0:00:14]} 50. Bf1 {[%clk 0:00:05]}  g2 {[%clk 0:00:14]} 51. Bxg2 {[%clk 0:00:06]}  Nxg2 {[%clk 0:00:15]} 0-1


[Site "https://www.chess.com"]

[Event "Titled Tuesday Blitz October 11 Late 2022"]
[White "Barash, Anton"]
[Black "D`Arruda, Ricardo D."]
[WhiteFideId "30935229"]
[BlackFideId "100692"]
[WhiteElo "2282"]
[BlackElo "2428"]
[Result "0-1"]
[Round "08"]
[TimeControl "180+1"]
[Date "2022.10.12"]
[WhiteClock "0:00:01"]
[BlackClock "0:00:54"]

1. e4 {[%clk 0:03:00]}  c5 {[%clk 0:02:59]} 2. Nf3 {[%clk 0:03:00]}  Nc6 {[%clk 0:02:58]} 3. d4 {[%clk 0:03:00]}  cxd4 {[%clk 0:02:58]} 4. Nxd4 {[%clk 0:03:01]}  e5 {[%clk 0:02:56]} 5. Nb5 {[%clk 0:03:01]}  a6 {[%clk 0:02:56]} 6. Nd6+ {[%clk 0:03:01]}  Bxd6 {[%clk 0:02:57]} 7. Qxd6 {[%clk 0:03:02]}  Qe7 {[%clk 0:02:57]} 8. Qd1 {[%clk 0:02:59]}  Nf6 {[%clk 0:02:56]} 9. Nc3 {[%clk 0:02:56]}  d6 {[%clk 0:02:56]} 10. Bg5 {[%clk 0:02:54]}  Be6 {[%clk 0:02:56]} 11. Bd3 {[%clk 0:02:50]}  O-O {[%clk 0:02:54]} 12. O-O {[%clk 0:02:50]}  h6 {[%clk 0:02:55]} 13. Bh4 {[%clk 0:02:49]}  Rac8 {[%clk 0:02:51]} 14. Ne2 {[%clk 0:02:43]}  g5 {[%clk 0:02:49]} 15. Bg3 {[%clk 0:02:43]}  Nh5 {[%clk 0:02:42]} 16. c3 {[%clk 0:02:36]}  Rfd8 {[%clk 0:02:39]} 17. Nd4 {[%clk 0:02:03]}  Nxg3 {[%clk 0:02:24]} 18. Nxc6 {[%clk 0:02:00]}  bxc6 {[%clk 0:02:21]} 19. hxg3 {[%clk 0:01:58]}  a5 {[%clk 0:02:00]} 20. Qh5 {[%clk 0:01:56]}  Kg7 {[%clk 0:01:59]} 21. f4 {[%clk 0:01:53]}  exf4 {[%clk 0:01:57]} 22. gxf4 {[%clk 0:01:52]}  gxf4 {[%clk 0:01:56]} 23. Rxf4 {[%clk 0:01:50]}  Qg5 {[%clk 0:01:56]} 24. Rh4 {[%clk 0:01:23]}  d5 {[%clk 0:01:43]} 25. e5 {[%clk 0:01:11]}  c5 {[%clk 0:01:38]} 26. Qxg5+ {[%clk 0:00:41]}  hxg5 {[%clk 0:01:36]} 27. Rh7+ {[%clk 0:00:41]}  Kg8 {[%clk 0:01:35]} 28. Rh5 {[%clk 0:00:40]}  g4 {[%clk 0:01:34]} 29. Bf5 {[%clk 0:00:40]}  Re8 {[%clk 0:01:24]} 30. Rf1 {[%clk 0:00:27]}  Rc6 {[%clk 0:01:22]} 31. Rg5+ {[%clk 0:00:13]}  Kf8 {[%clk 0:01:21]} 32. Bg6 {[%clk 0:00:08]}  Re7 {[%clk 0:01:14]} 33. Bh5 {[%clk 0:00:08]}  d4 {[%clk 0:01:08]} 34. cxd4 {[%clk 0:00:06]}  cxd4 {[%clk 0:01:09]} 35. Rf6 {[%clk 0:00:03]}  Rc1+ {[%clk 0:00:57]} 36. Kh2 {[%clk 0:00:03]}  Bxa2 {[%clk 0:00:57]} 37. Bxg4 {[%clk 0:00:02]}  Re1 {[%clk 0:00:55]} 38. Ra6 {[%clk 0:00:01]}  R1xe5 {[%clk 0:00:54]} 0-1


[Site "https://www.chess.com"]